bitfinex/quotes_BTCUSD_20250910
["timestamp","ask_amount","ask_price","bid_price","bid_amount"]
[1757537090014,0.0001,113730.0,113720.0,0.95477808]
[1757537090217,0.0001,113730.0,113720.0,0.94177808]
[1757537090645,0.0001,113730.0,113720.0,1.01320186]
[1757537090851,0.0001,113730.0,113720.0,0.96177808]
[1757537093902,0.0001,113760.0,113750.0,0.17582417]
[1757537094040,0.0001,113760.0,113750.0,0.32186417]
[1757537094243,0.0001,113760.0,113750.0,0.32680417]
[1757537094654,0.0001,113760.0,113750.0,0.35319215]
[1757537094971,0.0051,113760.0,113750.0,0.35429215]
[1757537095166,0.00556792,113760.0,113750.0,0.35429215]
[1757537096207,0.00556792,113760.0,113750.0,0.41269206]
[1757537098217,0.00556792,113760.0,113750.0,0.81269206]
[1757537100646,0.00556792,113760.0,113750.0,0.66665206]
[1757537100826,0.00556792,113760.0,113750.0,0.81269206]
[1757537101020,0.00752792,113760.0,113750.0,0.81269206]
[1757537101718,0.00752792,113760.0,113750.0,0.66665206]
[1757537101907,0.00752792,113760.0,113750.0,0.66372206]
[1757537102216,0.00752792,113760.0,113750.0,0.80976206]
[1757537103001,0.00752792,113760.0,113750.0,0.66372206]
[1757537103188,0.01066792,113760.0,113750.0,0.80771206]
[1757537103390,0.00752792,113760.0,113750.0,0.80771206]
[1757537104069,0.00752792,113760.0,113750.0,0.80972206]
[1757537104293,0.00752792,113760.0,113750.0,0.81265206]
[1757537110387,0.00752792,113760.0,113750.0,0.41265206]
[1757537110605,0.03480792,113760.0,113750.0,0.40771206]
[1757537111462,0.00752792,113760.0,113750.0,0.40771206]
[1757537111888,0.00752792,113760.0,113750.0,0.40972206]
[1757537112110,0.00752792,113760.0,113750.0,0.41265206]
[1757537112919,0.00556792,113760.0,113750.0,0.41265206]
[1757537116120,0.00556792,113760.0,113750.0,0.75265206]
[1757537116373,0.00556792,113760.0,113750.0,0.77549206]
[1757537116540,0.00556792,113760.0,113750.0,0.80061864]
[1757537116893,0.00056792,113760.0,113750.0,0.79961864]
[1757537117093,0.00456792,113760.0,113750.0,0.79961864]
[1757537117304,0.00456792,113760.0,113750.0,0.80161864]
[1757537117721,0.00056792,113760.0,113750.0,0.80161864]
[1757537117921,0.00056792,113760.0,113750.0,0.80361864]
[1757537118132,0.00056792,113760.0,113750.0,1.05761864]
[1757537118334,0.00056792,113760.0,113750.0,1.20161864]
[1757537118972,0.00056792,113760.0,113750.0,1.21361864]
[1757537119383,0.00056792,113760.0,113750.0,1.21161864]
[1757537119792,0.00056792,113760.0,113750.0,1.20161864]
[1757537120002,0.00056792,113760.0,113750.0,1.21361864]
[1757537121739,0.00056792,113760.0,113750.0,1.19077864]
[1757537122082,0.00056792,113760.0,113750.0,1.21361864]
[1757537127408,0.00056792,113760.0,113750.0,1.06761864]
[1757537127637,0.00056792,113760.0,113750.0,1.21361864]
[1757537131217,0.00263792,113760.0,113750.0,1.04184864]
[1757537131618,0.00263792,113760.0,113750.0,1.19078864]
[1757537131832,0.00056792,113760.0,113750.0,1.19078864]
[1757537137960,0.00056792,113760.0,113750.0,0.79078864]
[1757537139006,0.00580792,113760.0,113750.0,0.76071206]
[1757537141965,0.00263792,113760.0,113750.0,0.76283206]
[1757537142120,0.00263792,113760.0,113750.0,0.76577206]
[1757537142741,0.00263792,113760.0,113750.0,0.76071206]
[1757537144508,0.00263792,113760.0,113750.0,0.76577206]
[1757537144713,0.00056792,113760.0,113750.0,0.76577206]
[1757537153315,0.00263792,113760.0,113750.0,0.76577206]
[1757537153537,0.00263792,113760.0,113750.0,0.76071206]
[1757537153749,0.00263792,113760.0,113750.0,0.76283206]
[1757537154805,0.02956792,113760.0,113750.0,0.76079206]
[1757537156096,0.00574792,113760.0,113750.0,0.76079206]
[1757537157767,0.02956792,113760.0,113750.0,0.61471206]
[1757537158170,0.02956792,113760.0,113750.0,0.76083206]
[1757537161013,0.02956792,113760.0,113750.0,0.61471206]
[1757537161223,0.02956792,113760.0,113750.0,0.76083206]
[1757537164404,0.02956792,113760.0,113750.0,0.61471206]
[1757537164605,0.02956792,113760.0,113750.0,0.76079206]
[1757537169668,0.00263792,113760.0,113750.0,0.76280206]
[1757537172984,0.00263792,113760.0,113750.0,0.76079206]
[1757537173412,0.00574792,113760.0,113750.0,0.76079206]
[1757537179597,0.02956792,113760.0,113750.0,0.76079206]
[1757537181642,0.02956792,113760.0,113750.0,0.61471206]
[1757537181850,0.48760063,113760.0,113750.0,0.04934929]
[1757537182053,0.48760063,113760.0,113750.0,0.0636386]
[1757537182677,0.48760063,113760.0,113750.0,0.0616386]
[1757537182877,0.63364063,113760.0,113750.0,0.09062963]
[1757537183091,0.63364063,113760.0,113750.0,0.09162963]
[1757537183956,0.63364063,113760.0,113750.0,0.09062963]
[1757537184179,0.63764063,113760.0,113750.0,0.09062963]
[1757537185029,0.63764063,113760.0,113750.0,0.0636386]
[1757537185235,0.63764063,113760.0,113750.0,0.0496386]
[1757537185626,0.63764063,113760.0,113750.0,0.0536386]
[1757537187215,0.8323411,113760.0,113750.0,0.0536386]
[1757537188285,0.63764063,113760.0,113750.0,0.0536386]
[1757537188484,0.49160063,113760.0,113750.0,0.0536386]
[1757537188713,0.63760063,113760.0,113750.0,0.0536386]
[1757537189477,0.63760063,113760.0,113750.0,0.07747854]
[1757537191474,0.63760063,113760.0,113750.0,0.0536386]
[1757537193843,0.44290016,113760.0,113750.0,0.0536386]
[1757537194003,0.63760063,113760.0,113750.0,0.0536386]
[1757537195649,0.44290016,113760.0,113750.0,0.0536386]
[1757537195876,0.63760063,113760.0,113750.0,0.0536386]
[1757537197478,0.63760063,113760.0,113750.0,0.05989464]
[1757537208886,0.44290016,113760.0,113750.0,0.05989464]
[1757537209061,0.63760063,113760.0,113750.0,0.05989464]
[1757537211133,0.65407666,113760.0,113750.0,0.05989464]
[1757537212012,0.50807666,113760.0,113750.0,0.05989464]
[1757537212250,0.31337619,113760.0,113750.0,0.05989464]
[1757537212464,0.45941619,113760.0,113750.0,0.05989464]
[1757537218263,0.44294016,113760.0,113750.0,0.05989464]
[1757537219888,0.29690016,113760.0,113750.0,0.05989464]
[1757537220086,0.44294016,113760.0,113750.0,0.05989464]
[1757537222372,0.29690016,113760.0,113750.0,0.05989464]
[1757537222587,0.44294016,113760.0,113750.0,0.05989464]
[1757537222972,0.44294016,113760.0,113750.0,0.23571881]
[1757537223200,0.29690016,113760.0,113750.0,0.23571881]
[1757537223408,0.44294016,113760.0,113750.0,0.23571881]
[1757537236841,0.29690016,113760.0,113750.0,0.23571881]
[1757537237056,0.44290016,113760.0,113750.0,0.23571881]
[1757537239848,0.29690016,113760.0,113750.0,0.23571881]
[1757537240033,0.44290016,113760.0,113750.0,0.23571881]
[1757537242914,0.44290016,113760.0,113750.0,0.05989464]
[1757537257788,0.44290016,113760.0,113750.0,0.08628684]
[1757537282494,0.57270612,113760.0,113750.0,0.08628684]
[1757537282703,0.56870612,113760.0,113750.0,0.08628684]
[1757537283090,0.57470612,113760.0,113750.0,0.08228684]
[1757537283544,0.56870612,113760.0,113750.0,0.08228684]
[1757537283835,0.57570612,113760.0,113750.0,0.08328684]
[1757537285189,0.56870612,113760.0,113750.0,0.08228684]
[1757537285409,0.58070612,113760.0,113750.0,0.08328684]
[1757537286460,0.64565077,113760.0,113750.0,0.08328684]
[1757537287107,0.84040138,113760.0,113750.0,0.0274922]
[1757537287325,0.93327946,113760.0,113750.0,0.0011]
[1757537287547,1.13076265,113760.0,113750.0,0.0011]
[1757537287759,1.13075878,113760.0,113750.0,0.0011]
[1757537288197,1.13899569,113760.0,113750.0,0.0011]
[1757537288409,1.13075878,113760.0,113750.0,0.0011]
[1757537289771,1.60101211,113760.0,113750.0,0.0011]
[1757537289990,1.70635774,113760.0,113750.0,1e-08]
[1757537290447,1.51295355,113760.0,113750.0,1e-08]
[1757537290663,1.65891355,113760.0,113750.0,1e-08]
[1757537290912,2.24316538,113760.0,113750.0,1e-08]
[1757537291138,2.24316538,113760.0,113740.0,1e-08]
[1757537291139,0.78520258,113750.0,113740.0,1e-08]
[1757537291370,1.22977709,113750.0,113740.0,1e-08]
[1757537291604,1.23183709,113750.0,113740.0,1e-08]
[1757537291822,1.29083617,113750.0,113740.0,1e-08]
[1757537292058,1.29093617,113750.0,113740.0,1e-08]
[1757537292276,1.30393617,113750.0,113740.0,0.00100001]
[1757537292487,1.12634671,113750.0,113740.0,0.00100001]
[1757537292698,1.30393617,113750.0,113740.0,0.00100001]
[1757537292929,1.10918556,113750.0,113740.0,0.00100001]
[1757537294186,1.34205508,113750.0,113740.0,0.00100001]
[1757537294812,1.14730447,113750.0,113740.0,0.00100001]
[1757537295336,1.09730447,113750.0,113740.0,0.00100001]
[1757537295557,0.17588602,113710.0,113700.0,0.0496386]
[1757537295773,0.60420015,113710.0,113700.0,0.0496386]
[1757537295989,0.60626015,113710.0,113700.0,0.0496386]
[1757537296198,0.63364015,113710.0,113700.0,0.0496386]
[1757537296414,0.64233557,113710.0,113700.0,0.0001]
[1757537296620,0.63364015,113710.0,113700.0,0.0001]
[1757537296821,0.66061232,113710.0,113700.0,0.0001]
[1757537297868,0.52557232,113710.0,113700.0,0.0011]
[1757537298017,0.67161232,113710.0,113700.0,0.0011]
[1757537298230,0.66561232,113710.0,113700.0,0.0001]
[1757537298430,0.74893604,113710.0,113700.0,0.0001]
[1757537298647,0.75893604,113710.0,113700.0,0.0011]
[1757537299664,0.61289604,113710.0,113700.0,0.0011]
[1757537299868,0.75893604,113710.0,113700.0,0.0011]
[1757537301361,0.41814543,113710.0,113700.0,0.0011]
[1757537301561,0.56418543,113710.0,113700.0,0.0011]
[1757537301745,0.75893604,113710.0,113700.0,0.0011]
[1757537304378,0.77779781,113710.0,113700.0,0.0011]
[1757537304585,0.75893604,113710.0,113700.0,0.0011]
[1757537305199,0.7777985,113710.0,113700.0,0.0011]
[1757537306940,0.77774277,113710.0,113700.0,0.0011]
[1757537307800,0.63174277,113710.0,113700.0,0.0011]
[1757537308015,0.77774277,113710.0,113700.0,0.0011]
[1757537308236,0.58299216,113710.0,113700.0,0.0011]
[1757537308624,0.77774277,113710.0,113700.0,0.0011]
[1757537310846,0.77794277,113710.0,113700.0,0.0011]
[1757537312291,0.80163472,113710.0,113700.0,0.0011]
[1757537313306,0.80159472,113710.0,113700.0,0.0011]
[1757537315349,0.83322418,113710.0,113700.0,0.0011]
[1757537315810,0.80159472,113710.0,113700.0,0.0011]
[1757537315987,0.65543472,113710.0,113700.0,0.0011]
[1757537316198,0.80159472,113710.0,113700.0,0.0011]
[1757537316407,0.84143797,113710.0,113700.0,0.0011]
[1757537316617,0.81499314,113710.0,113700.0,0.0011]
[1757537317378,0.79746521,113710.0,113700.0,0.0011]
[1757537317963,0.65134521,113710.0,113700.0,0.0011]
[1757537318166,0.79752783,113710.0,113700.0,0.0011]
[1757537318322,0.84497202,113710.0,113700.0,0.0011]
[1757537319630,0.69885202,113710.0,113700.0,0.0011]
[1757537319828,0.84497202,113710.0,113700.0,0.0011]
[1757537320422,0.81334256,113710.0,113700.0,0.0011]
[1757537325750,0.81340977,113710.0,113700.0,0.0011]
[1757537327765,0.61865916,113710.0,113700.0,0.0011]
[1757537327992,0.81340977,113710.0,113700.0,0.0011]
[1757537329176,0.81340977,113710.0,113700.0,0.0506386]
[1757537329177,0.65028111,113710.0,113700.0,0.0506386]
[1757537329412,0.79758753,113710.0,113700.0,0.056866]
[1757537329572,0.84503172,113710.0,113700.0,0.056866]
[1757537329789,0.79758753,113710.0,113700.0,0.056866]
[1757537331468,0.60283692,113710.0,113700.0,0.056866]
[1757537331664,0.82132753,113710.0,113700.0,0.056866]
[1757537332082,0.82132753,113710.0,113700.0,0.0506386]
[1757537333136,0.82135353,113710.0,113700.0,0.0506386]
[1757537333755,0.62660292,113710.0,113700.0,0.0506386]
[1757537333962,0.82135353,113710.0,113700.0,0.0506386]
[1757537334162,0.78969158,113710.0,113700.0,0.0506386]
[1757537334346,0.78969158,113710.0,113700.0,0.07329413]
[1757537334779,0.78969054,113710.0,113700.0,0.07329413]
[1757537335192,0.78969054,113710.0,113700.0,0.0506386]
[1757537336946,0.7732065,113710.0,113700.0,0.0506386]
[1757537337147,0.78968964,113710.0,113700.0,0.0506386]
[1757537338192,0.76594964,113710.0,113700.0,0.0506386]
[1757537339015,0.57119903,113710.0,113700.0,0.0506386]
[1757537339228,0.75152631,113710.0,113700.0,0.05570246]
[1757537340505,0.5567757,113710.0,113700.0,0.05570246]
[1757537340720,0.75152631,113710.0,113700.0,0.05570246]
[1757537340932,0.75152631,113710.0,113700.0,0.0506386]
[1757537344503,0.73266385,113710.0,113700.0,0.0506386]
[1757537344901,0.75165301,113710.0,113700.0,0.0506386]
[1757537345324,0.73266385,113710.0,113700.0,0.0506386]
[1757537345566,0.5214301,113710.0,113700.0,0.0506386]
[1757537345766,0.71618071,113710.0,113700.0,0.0506386]
[1757537346079,0.78370071,113710.0,113700.0,0.0506386]
[1757537346462,0.71890776,113710.0,113700.0,0.0506386]
[1757537347143,0.71886776,113710.0,113700.0,0.0506386]
[1757537347363,0.5889101,113710.0,113700.0,0.0506386]
[1757537348271,0.4428701,113710.0,113700.0,0.0506386]
[1757537348521,0.5889101,113710.0,113700.0,0.0506386]
[1757537349983,0.5889101,113710.0,113700.0,0.05570246]
[1757537352406,0.5889101,113710.0,113700.0,0.0506386]
[1757537353139,0.71886776,113710.0,113700.0,0.0506386]
[1757537353666,0.5889101,113710.0,113700.0,0.0506386]
[1757537353862,0.71886776,113710.0,113700.0,0.0506386]
[1757537356269,0.71886776,113710.0,113700.0,0.0011]
[1757537356480,0.75434618,113710.0,113700.0,0.0011]
[1757537362105,0.75434421,113710.0,113700.0,0.0011]
[1757537364447,0.62438655,113710.0,113700.0,0.0011]
[1757537364651,0.75434421,113710.0,113700.0,0.0011]
[1757537365773,0.93564302,113710.0,113700.0,0.0011]
[1757537365989,0.80568536,113710.0,113700.0,0.0011]
[1757537367590,0.65964536,113710.0,113700.0,0.0011]
[1757537367802,0.80568536,113710.0,113700.0,0.0011]
[1757537372394,1.28182074,113710.0,113700.0,0.0011]
[1757537372612,1.29463863,113710.0,113700.0,0.0011]
[1757537373098,1.29463863,113710.0,113700.0,0.001]
[1757537373099,1.35004058,113710.0,113700.0,0.001]
[1757537373321,0.17591696,113690.0,113680.0,0.01]
[1757537373545,0.55591122,113690.0,113680.0,0.01]
[1757537373771,0.57699419,113690.0,113680.0,0.01]
[1757537373989,0.60459419,113690.0,113680.0,0.01]
[1757537374446,0.58570122,113690.0,113680.0,0.01]
[1757537374940,0.58970122,113690.0,113680.0,0.01]
[1757537376218,0.4687878,113690.0,113680.0,0.01]
[1757537376463,0.70235898,113690.0,113680.0,0.01]
[1757537376637,0.72877388,113690.0,113680.0,0.01]
[1757537379084,0.4952027,113690.0,113680.0,0.01]
[1757537379302,0.6412427,113690.0,113680.0,0.01]
[1757537381809,1.11120036,113690.0,113680.0,0.01]
[1757537382050,1.13014694,113690.0,113680.0,0.01]
[1757537382263,1.00018928,113690.0,113680.0,0.01]
[1757537382481,1.08772046,113690.0,113680.0,0.01]
[1757537385881,1.21767812,113690.0,113680.0,0.01]
[1757537386292,1.08772046,113690.0,113680.0,0.01]
[1757537386521,0.9577628,113690.0,113680.0,0.01]
[1757537386771,0.94168046,113690.0,113680.0,0.01]
[1757537387014,0.87023162,113690.0,113680.0,0.01]
[1757537387260,1.00018928,113690.0,113680.0,0.01]
[1757537387492,0.99618928,113690.0,113680.0,0.01]
[1757537387695,1.00318928,113690.0,113680.0,0.01]
[1757537388789,1.00518928,113690.0,113680.0,0.01]
[1757537389854,0.85914928,113690.0,113680.0,0.01]
[1757537390071,1.00518928,113690.0,113680.0,0.01]
[1757537392067,1.00515973,113690.0,113680.0,0.01]
[1757537392485,1.01132697,113690.0,113680.0,0.01]
[1757537395759,1.09887042,113690.0,113680.0,0.01]
[1757537396405,0.95283042,113690.0,113680.0,0.01]
[1757537396539,1.09891042,113690.0,113680.0,0.01]
[1757537398317,1.1308548,113690.0,113680.0,0.01]
[1757537400744,1.04332362,113690.0,113680.0,0.01]
[1757537401418,0.91336596,113690.0,113680.0,0.01]
[1757537401625,1.04332362,113690.0,113680.0,0.01]
[1757537402043,1.04333001,113690.0,113680.0,0.01]
[1757537402706,0.91337235,113690.0,113680.0,0.01]
[1757537402913,1.04333001,113690.0,113680.0,0.01]
[1757537403620,1.26081885,113690.0,113680.0,0.01]
[1757537405825,1.2608293,113690.0,113680.0,0.01]
[1757537406056,1.2608293,113690.0,113680.0,1e-08]
[1757537406272,1.29249125,113690.0,113680.0,1e-08]
[1757537406491,1.27336921,113690.0,113680.0,1e-08]
[1757537408364,1.40360271,113690.0,113680.0,1e-08]
[1757537409398,1.25752271,113690.0,113680.0,1e-08]
[1757537409617,0.97491712,113690.0,113680.0,1e-08]
[1757537409834,1.19372451,113690.0,113680.0,1e-08]
[1757537410051,1.1446901,113690.0,113680.0,1e-08]
[1757537410291,0.94961569,113690.0,113680.0,1e-08]
[1757537410489,1.1446901,113690.0,113680.0,1e-08]
[1757537410699,1.11302815,113690.0,113680.0,1e-08]
[1757537411577,0.96698815,113690.0,113680.0,1e-08]
[1757537411782,1.11302815,113690.0,113680.0,1e-08]
[1757537413279,1.18058815,113690.0,113680.0,1e-08]
[1757537414144,1.15546157,113690.0,113680.0,1e-08]
[1757537414378,0.81434716,113690.0,113680.0,1e-08]
[1757537414615,0.90905418,113690.0,113680.0,1e-08]
[1757537414856,0.90905418,113690.0,113680.0,0.00215001]
[1757537414857,0.56081797,113690.0,113680.0,0.00215001]
[1757537415103,0.56081797,113690.0,113680.0,0.00520001]
[1757537415104,0.5546376,113690.0,113680.0,0.00520001]
[1757537415337,0.5310985,113690.0,113680.0,0.00520001]
[1757537415562,0.72617291,113690.0,113680.0,1e-08]
[1757537415790,0.3154085,113690.0,113680.0,0.00520001]
[1757537416018,0.4350336,113690.0,113680.0,0.05473861]
[1757537416263,0.2889936,113690.0,113680.0,0.07784725]
[1757537416515,0.41866048,113690.0,113680.0,0.07784725]
[1757537416741,0.41166048,113690.0,113680.0,0.07784725]
[1757537417657,0.41866048,113690.0,113680.0,0.07784725]
[1757537418115,0.41666048,113690.0,113680.0,0.07784725]
[1757537418335,0.41766048,113690.0,113680.0,0.07784725]
[1757537418836,0.41666048,113690.0,113680.0,0.07784725]
[1757537419063,0.40966048,113690.0,113680.0,0.07784725]
[1757537419507,0.41466048,113690.0,113680.0,0.07784725]
[1757537420168,0.41462048,113690.0,113680.0,0.07784725]
[1757537426756,0.26854048,113690.0,113680.0,0.07784725]
[1757537426959,0.41458048,113690.0,113680.0,0.07784725]
[1757537429012,0.60965489,113690.0,113680.0,0.05473861]
[1757537429213,0.61169489,113690.0,113680.0,0.05473861]
[1757537430599,0.61169489,113690.0,113680.0,0.04953861]
[1757537430807,0.63955489,113690.0,113680.0,1e-08]
[1757537431671,0.44448048,113690.0,113680.0,1e-08]
[1757537431872,0.63955489,113690.0,113680.0,1e-08]
[1757537435992,0.49351489,113690.0,113680.0,1e-08]
[1757537436206,0.63963489,113690.0,113680.0,1e-08]
[1757537436935,0.49351489,113690.0,113680.0,1e-08]
[1757537437142,0.63963489,113690.0,113680.0,1e-08]
[1757537438378,0.49351489,113690.0,113680.0,1e-08]
[1757537438635,0.26854048,113690.0,113680.0,0.05479861]
[1757537438880,0.26854048,113690.0,113680.0,0.07792324]
[1757537438881,0.41462048,113690.0,113680.0,0.07792324]
[1757537439540,0.41666048,113690.0,113680.0,0.07792324]
[1757537441285,0.61173489,113690.0,113680.0,0.07792324]
[1757537444000,0.61173489,113690.0,113680.0,0.07480324]
[1757537445493,0.63959489,113690.0,113680.0,0.04953861]
[1757537445716,0.61173489,113690.0,113680.0,0.04953861]
[1757537446819,0.61173489,113690.0,113680.0,0.05167861]
[1757537447248,0.61488489,113690.0,113680.0,0.04953861]
[1757537447676,0.41981048,113690.0,113680.0,0.04953861]
[1757537447900,0.61173489,113690.0,113680.0,0.04953861]
[1757537449575,0.61185489,113690.0,113680.0,0.04953861]
[1757537451819,0.46565489,113690.0,113680.0,0.05167861]
[1757537452029,0.61181489,113690.0,113680.0,0.05479861]
[1757537453100,0.61181489,113690.0,113680.0,0.04953861]
[1757537453303,0.61496489,113690.0,113680.0,0.04953861]
[1757537456271,0.41674048,113690.0,113680.0,0.05162861]
[1757537456486,0.46565489,113690.0,113680.0,0.07765624]
[1757537456748,0.61177489,113690.0,113680.0,0.07765624]
[1757537457172,0.46565489,113690.0,113680.0,0.07765624]
[1757537457388,0.61177489,113690.0,113680.0,0.07765624]
[1757537457587,0.61177489,113690.0,113680.0,0.05484861]
[1757537459552,0.60973489,113690.0,113680.0,0.05484861]
[1757537459985,0.61171489,113690.0,113680.0,0.05484861]
[1757537461264,0.41664048,113690.0,113680.0,0.05484861]
[1757537461477,0.61171489,113690.0,113680.0,0.05484861]
[1757537466616,0.61171489,113690.0,113680.0,0.05162861]
[1757537468548,0.54663916,113690.0,113680.0,0.05162861]
[1757537469398,0.54663916,113690.0,113680.0,0.05484861]
[1757537470377,0.40051916,113690.0,113680.0,0.07797824]
[1757537470645,0.09262352,113690.0,113680.0,0.25391068]
[1757537470815,0.23870352,113690.0,113680.0,0.27710068]
[1757537471016,0.41462048,113690.0,113680.0,0.27710068]
[1757537471224,0.23870352,113690.0,113680.0,0.27710068]
[1757537471426,0.41462048,113690.0,113680.0,0.27710068]
[1757537471845,0.23870352,113690.0,113680.0,0.27710068]
[1757537472827,0.41462048,113690.0,113680.0,0.27710068]
[1757537473415,0.23870352,113690.0,113680.0,0.27710068]
[1757537474045,0.41462048,113690.0,113680.0,0.27710068]
[1757537474269,0.23870352,113690.0,113680.0,0.27710068]
[1757537474664,0.41452048,113690.0,113680.0,0.27710068]
[1757537475593,0.41452048,113690.0,113680.0,0.25391068]
[1757537475815,0.41452048,113690.0,113680.0,0.07797824]
[1757537477824,0.41650048,113690.0,113680.0,0.07797824]
[1757537478045,0.41650048,113690.0,113680.0,0.07475824]
[1757537478488,0.54649916,113690.0,113680.0,0.05172861]
[1757537478699,0.54971916,113690.0,113680.0,0.04963861]
[1757537479347,0.54649916,113690.0,113680.0,0.04963861]
[1757537480381,0.54649916,113690.0,113680.0,0.05172861]
[1757537480593,0.41650048,113690.0,113680.0,0.05172861]
[1757537482334,0.41650048,113690.0,113680.0,0.04963861]
[1757537491146,0.41650048,113690.0,113680.0,0.05179861]
[1757537491914,0.27042048,113690.0,113680.0,0.05179861]
[1757537492121,0.41662048,113690.0,113680.0,0.05179861]
[1757537494196,0.41662048,113690.0,113680.0,0.04963861]
[1757537496826,0.41662048,113690.0,113680.0,0.07604658]
[1757537497032,0.57412916,113690.0,113680.0,0.07604658]
[1757537497189,0.57412916,113690.0,113680.0,0.04963861]
[1757537497975,0.57422916,113690.0,113680.0,0.04963861]
[1757537499154,0.57422916,113690.0,113680.0,0.04953861]
[1757537510803,0.42802916,113690.0,113680.0,0.04953861]
[1757537511045,0.57414916,113690.0,113680.0,0.04953861]
[1757537513619,0.57410916,113690.0,113680.0,0.04953861]
[1757537520521,0.72055611,113690.0,113680.0,1e-08]
[1757537520752,1.11209564,113690.0,113680.0,1e-08]
[1757537520976,1.13104313,113690.0,113680.0,1e-08]
[1757537521201,1.141803,113690.0,113680.0,1e-08]
[1757537521655,1.1736759,113690.0,113680.0,1e-08]
[1757537521859,0.46107185,113670.0,113660.0,1e-08]
[1757537522107,0.81680245,113670.0,113660.0,1e-08]
[1757537522335,0.82966215,113670.0,113660.0,1e-08]
[1757537522603,0.8532809,113670.0,113660.0,1e-08]
[1757537522836,0.94081208,113670.0,113660.0,1e-08]
[1757537523291,0.94127913,113670.0,113660.0,1e-08]
[1757537523925,0.94627913,113670.0,113660.0,1e-08]
[1757537524139,1.01157353,113670.0,113660.0,1e-08]
[1757537526224,0.87424958,113670.0,113660.0,1e-08]
[1757537526485,0.61425222,113670.0,113660.0,1e-08]
[1757537526695,1.02044958,113670.0,113660.0,1e-08]
[1757537530290,1.15079074,113670.0,113660.0,1e-08]
[1757537533654,1.59409074,113670.0,113660.0,1e-08]
[1757537536745,1.60022967,113670.0,113660.0,1e-08]
[1757537538710,1.60016084,113670.0,113660.0,1e-08]
[1757537540309,1.62381425,113670.0,113660.0,1e-08]
[1757537544087,1.81898351,113670.0,113660.0,1e-08]
[1757537544316,1.63200946,113670.0,113660.0,1e-08]
[1757537544521,1.66367141,113670.0,113660.0,1e-08]
[1757537546215,2.19884067,113670.0,113660.0,1e-08]
[1757537546431,0.76147117,113660.0,113650.0,1e-08]
[1757537546644,1.17725907,113660.0,113650.0,1e-08]
[1757537546878,1.17934907,113660.0,113650.0,1e-08]
[1757537547231,1.20564907,113660.0,113650.0,1e-08]
[1757537547446,1.1742464,113660.0,113650.0,1e-08]
[1757537547667,1.1846464,113660.0,113650.0,1e-08]
[1757537548121,1.0404464,113660.0,113650.0,1e-08]
[1757537548343,1.1866464,113660.0,113650.0,1e-08]
[1757537548991,1.18666166,113660.0,113650.0,1e-08]
[1757537549449,1.13940766,113660.0,113650.0,1e-08]
[1757537549901,1.14640766,113660.0,113650.0,1e-08]
[1757537551357,1.15100154,113660.0,113650.0,1e-08]
[1757537551561,1.21426046,113660.0,113650.0,1e-08]
[1757537554385,1.15100154,113660.0,113650.0,1e-08]
[1757537555370,0.41929376,113660.0,113650.0,1e-08]
[1757537555598,0.88208571,113660.0,113650.0,1e-08]
[1757537555820,1.02828571,113660.0,113650.0,1e-08]
[1757537556895,1.05983788,113660.0,113650.0,1e-08]
[1757537557462,0.91369194,113660.0,113650.0,1e-08]
[1757537557695,1.05989194,113660.0,113650.0,1e-08]
[1757537559128,1.05985194,113660.0,113650.0,1e-08]
[1757537561214,0.91369194,113660.0,113650.0,1e-08]
[1757537561653,1.05985194,113660.0,113650.0,1e-08]
[1757537561877,1.01252509,113660.0,113650.0,1e-08]
[1757537563889,0.86636509,113660.0,113650.0,1e-08]
[1757537564047,1.01252509,113660.0,113650.0,1e-08]
[1757537565866,0.86636509,113660.0,113650.0,1e-08]
[1757537566066,1.01252509,113660.0,113650.0,1e-08]
[1757537566511,0.98255126,113660.0,113650.0,1e-08]
[1757537566731,0.83639126,113660.0,113650.0,1e-08]
[1757537566933,0.98255126,113660.0,113650.0,1e-08]
[1757537567699,0.59221274,113660.0,113650.0,1e-08]
[1757537567902,0.98255126,113660.0,113650.0,1e-08]
[1757537568116,1.090682,113660.0,113650.0,1e-08]
[1757537568338,1.25429909,113660.0,113650.0,0.00204001]
[1757537568666,1.24608862,113660.0,113650.0,1e-08]
[1757537568868,1.23282512,113660.0,113650.0,1e-08]
[1757537569077,1.24926738,113660.0,113650.0,1e-08]
[1757537569631,1.10310738,113660.0,113650.0,1e-08]
[1757537569844,1.30892106,113660.0,113650.0,1e-08]
[1757537570166,1.24926738,113660.0,113650.0,1e-08]
[1757537571460,1.22559457,113660.0,113650.0,1e-08]
[1757537571887,1.22238457,113660.0,113650.0,1e-08]
[1757537572333,1.22555457,113660.0,113650.0,1e-08]
[1757537572530,1.22558196,113660.0,113650.0,1e-08]
[1757537572875,0.83524344,113660.0,113650.0,1e-08]
[1757537573103,1.22558196,113660.0,113650.0,1e-08]
[1757537574077,1.31311314,113660.0,113650.0,1e-08]
[1757537574299,1.30694682,113660.0,113650.0,1e-08]
[1757537576607,1.33154682,113660.0,113650.0,1e-08]
[1757537582301,1.32695294,113660.0,113650.0,1e-08]
[1757537582972,1.29918294,113660.0,113650.0,1e-08]
[1757537583202,1.21165176,113660.0,113650.0,1e-08]
[1757537583433,1.21479176,113660.0,113650.0,1e-08]
[1757537586547,1.2455594,113660.0,113650.0,1e-08]
[1757537586980,1.24555973,113660.0,113650.0,1e-08]
[1757537587413,1.27198254,113660.0,113650.0,1e-08]
[1757537587612,1.35951372,113660.0,113650.0,1e-08]
[1757537590343,1.229417,113660.0,113650.0,1e-08]
[1757537593031,1.083297,113660.0,113650.0,1e-08]
[1757537593213,1.10929504,113660.0,113650.0,1e-08]
[1757537595456,1.11546289,113660.0,113650.0,1e-08]
[1757537596210,0.96934289,113660.0,113650.0,1e-08]
[1757537596534,1.10929504,113660.0,113650.0,1e-08]
[1757537596748,1.19682622,113660.0,113650.0,1e-08]
[1757537597061,1.05070622,113660.0,113650.0,1e-08]
[1757537597287,1.08469504,113660.0,113650.0,1e-08]
[1757537597648,1.10929504,113660.0,113650.0,1e-08]
[1757537598669,1.10929504,113660.0,113650.0,1e-08]
[1757537605367,1.10929952,113660.0,113650.0,1e-08]
[1757537606631,1.08155952,113660.0,113650.0,0.00204001]
[1757537606860,0.92631204,113660.0,113650.0,0.00522001]
[1757537609751,0.64798114,113660.0,113650.0,0.00522001]
[1757537609960,0.79410114,113660.0,113650.0,0.00522001]
[1757537610158,0.92422204,113660.0,113650.0,0.00522001]
[1757537611217,0.79410114,113660.0,113650.0,0.00522001]
[1757537611426,0.91722204,113660.0,113650.0,0.00522001]
[1757537611634,0.79210114,113660.0,113650.0,0.00522001]
[1757537611966,0.92222204,113660.0,113650.0,0.00522001]
[1757537612173,0.89827455,113660.0,113650.0,0.00522001]
[1757537612379,0.90227455,113660.0,113650.0,0.00522001]